bitfinex-derivatives/quotes_SOLF0:USTF0_20260215
["timestamp","ask_amount","ask_price","bid_price","bid_amount"]
[1771146110210,19.57260939,89.455,89.392,18.85024805]
[1771146110707,19.57260939,89.453,89.392,18.85024805]
[1771146111805,19.57260939,89.453,89.396,18.85024805]
[1771146112913,19.57260939,89.453,89.398,18.85024805]
[1771146114017,10.0645,89.463,89.398,18.85024805]
[1771146114709,10.0645,89.463,89.4,18.85024805]
[1771146115116,19.57260939,89.462,89.4,18.85024805]
[1771146115415,19.57260939,89.46,89.4,18.85024805]
[1771146118110,19.57260939,89.457,89.4,18.85024805]
[1771146119019,19.57260939,89.496,89.431,18.85024805]
[1771146120118,19.57260939,89.493,89.431,18.85024805]
[1771146120712,19.57260939,89.493,89.432,18.85024805]
[1771146120910,19.57260939,89.508,89.44,8.5741239]
[1771146121111,19.57260939,89.531,89.461,18.85024805]
[1771146121913,19.57260939,89.531,89.46,8.5741239]
[1771146121914,19.57260939,89.531,89.466,18.85024805]
[1771146122519,19.57260939,89.529,89.452,91.18]
[1771146122720,19.57260939,89.529,89.45,18.85024805]
[1771146123521,8.5741239,89.54,89.45,18.85024805]
[1771146123522,19.57260939,89.503,89.45,18.85024805]
[1771146123825,19.57260939,89.503,89.441,10.067]
[1771146124018,10.0606,89.498,89.434,18.85024805]
[1771146124224,19.57260939,89.497,89.434,18.85024805]
[1771146124827,19.57260939,89.495,89.434,18.85024805]
[1771146125726,19.57260939,89.512,89.441,18.85024805]
[1771146126125,29.62980939,89.529,89.461,18.85024805]
[1771146126327,19.57260939,89.529,89.461,18.85024805]
[1771146126726,19.57260939,89.529,89.473,18.85024805]
[1771146126920,19.57260939,89.541,89.473,18.85024805]
[1771146128228,19.57260939,89.541,89.481,18.85024805]
[1771146130929,19.57260939,89.536,89.481,18.85024805]
[1771146131841,108.72,89.569,89.481,18.85024805]
[1771146131842,19.57260939,89.568,89.481,18.85024805]
[1771146132845,19.57260939,89.568,89.48,8.5741239]
[1771146132850,10.0543,89.555,89.484,10.0621]
[1771146133042,19.57260939,89.568,89.5,8.5741239]
[1771146133341,19.57260939,89.568,89.501,18.85024805]
[1771146134143,19.57260939,89.568,89.513,18.94903621]
[1771146136237,19.17974864,89.588,89.513,18.94903621]
[1771146136432,19.17974864,89.588,89.515,18.94903621]
[1771146137536,19.17974864,89.588,89.527,18.94903621]
[1771146137740,19.17974864,89.588,89.52,8.5741239]
[1771146137741,19.17974864,89.622,89.541,18.94903621]
[1771146137950,19.17974864,89.622,89.561,18.94903621]
[1771146138439,10.0468,89.621,89.562,18.94903621]
[1771146138945,10.0459,89.629,89.568,18.94903621]
[1771146140046,19.17974864,89.644,89.579,18.94903621]
[1771146140246,19.17974864,89.662,89.581,18.94903621]
[1771146140636,19.17974864,89.662,89.601,18.94903621]
[1771146140844,19.17974864,89.697,89.601,18.94903621]
[1771146141041,10.0415,89.669,89.601,18.94903621]
[1771146141347,19.17974864,89.668,89.603,18.94903621]
[1771146141737,19.17974864,89.668,89.604,18.94903621]
[1771146142344,19.17974864,89.667,89.604,18.94903621]
[1771146142936,19.17974864,89.667,89.595,10.0496]
[1771146142937,19.17974864,89.66,89.595,10.0496]
[1771146143242,19.17974864,89.66,89.588,18.94903621]
[1771146143452,19.17974864,89.66,89.585,10.0507]
[1771146144248,19.17974864,89.66,89.59,18.94903621]
[1771146145341,19.17974864,89.648,89.59,18.94903621]
[1771146146243,10.0445,89.642,89.59,18.94903621]
[1771146146450,19.17974864,89.641,89.58,8.5741239]
[1771146147650,19.17974864,89.641,89.581,18.94903621]
[1771146148740,19.17974864,89.641,89.584,18.94903621]
[1771146149447,19.17974864,89.641,89.58,8.5741239]
[1771146149448,29.22444864,89.64,89.587,18.94903621]
[1771146149642,156.1397,89.704,89.566,89.1]
[1771146149643,19.17974864,89.639,89.57,18.94903621]
[1771146150843,19.17974864,89.629,89.571,10.0523]
[1771146151243,19.17974864,89.629,89.572,18.94903621]
[1771146151844,19.17974864,89.629,89.575,18.94903621]
[1771146152242,19.17974864,89.629,89.566,89.1]
[1771146152243,19.17974864,89.62,89.56,8.5741239]
[1771146152447,19.17974864,89.62,89.563,18.94903621]
[1771146153841,19.17974864,89.618,89.549,10.0548]
[1771146154236,19.17974864,89.618,89.54,97.6341239]
[1771146154237,19.17974864,89.618,89.55,18.94903621]
[1771146155047,19.17974864,89.613,89.555,10.0541]
[1771146155246,19.17974864,89.613,89.555,29.00313621]
[1771146155442,19.17974864,89.613,89.556,18.94903621]
[1771146156745,10.0478,89.612,89.556,18.94903621]
[1771146157340,19.17974864,89.611,89.584,1.49999999]
[1771146157540,52.72974864,89.63,89.584,1.49999999]
[1771146157741,19.17974864,89.629,89.584,1.49999999]
[1771146157945,10.0481,89.61,89.584,1.49999999]
[1771146158254,19.17974864,89.629,89.584,1.49999999]
[1771146159549,19.17974864,89.654,89.585,18.94903621]
[1771146159849,19.17974864,89.654,89.595,18.94903621]
[1771146160048,19.17974864,89.671,89.601,18.94903621]
[1771146160844,19.17974864,89.671,89.6,8.5741239]
[1771146161445,33.55,89.699,89.594,18.94903621]
[1771146161446,19.17974864,89.646,89.594,18.94903621]
[1771146161651,19.17974864,89.68,89.601,18.94903621]
[1771146162250,17.10138898,89.677,89.605,17.55200913]
[1771146163551,10.0428,89.657,89.605,17.55200913]
[1771146163751,17.29760554,89.656,89.604,17.53525395]
[1771146163957,11.16,89.747,89.592,105.36]
[1771146163958,17.29760554,89.687,89.621,17.53525395]
[1771146164355,17.29760554,89.687,89.632,17.53525395]
[1771146164558,17.29760554,89.704,89.641,17.53525395]
[1771146164860,17.29760554,89.704,89.646,17.53525395]
[1771146166153,296.0,89.779,89.64,8.5741239]
[1771146166154,17.29760554,89.72,89.65,17.53525395]
[1771146166459,17.29760554,89.72,89.661,17.53525395]
[1771146167156,115.28,89.762,89.66,8.5741239]
[1771146167157,17.29760554,89.737,89.669,17.53525395]
[1771146167951,17.29760554,89.737,89.681,17.53525395]
[1771146168654,17.29760554,89.734,89.674,10.0408]
[1771146169158,17.29760554,89.734,89.663,17.53525395]
[1771146169554,17.29760554,89.731,89.665,10.0418]
[1771146169751,17.29760554,89.731,89.663,17.53525395]
[1771146169958,17.29760554,89.729,89.647,17.53525395]
[1771146170361,17.29760554,89.702,89.647,17.53525395]
[1771146171456,10.0358,89.719,89.659,17.53525395]
[1771146171657,17.29760554,89.737,89.661,17.53525395]
[1771146172862,17.29760554,89.733,89.661,17.53525395]
[1771146173463,10.0355,89.722,89.661,17.53525395]
[1771146173664,17.29760554,89.721,89.661,17.53525395]
[1771146174965,17.29760554,89.715,89.661,17.53525395]
[1771146175465,10.0365,89.713,89.661,17.53525395]
[1771146175667,17.29760554,89.715,89.664,10.0419]
[1771146176264,17.29760554,89.731,89.675,10.0407]
[1771146176460,17.29760554,89.748,89.676,17.53525395]
[1771146176666,17.29760554,89.748,89.681,17.53525395]
[1771146177670,17.29760554,89.733,89.664,17.53525395]
[1771146178165,17.29760554,89.733,89.682,10.0398]
[1771146178371,10.0333,89.742,89.683,17.53525395]
[1771146178972,17.29760554,89.751,89.68,8.52161704]
[1771146178973,17.29760554,89.751,89.697,17.53525395]
[1771146179771,20.0525,89.805,89.657,33.55]
[1771146179772,17.29760554,89.77,89.707,17.53525395]
[1771146180169,10.0311,89.761,89.71,10.0367]
[1771146180570,17.29760554,89.769,89.687,17.53525395]
[1771146181267,17.29760554,89.749,89.66,8.52161704]
[1771146181463,17.29760554,89.739,89.654,17.53525395]
[1771146181667,17.29760554,89.715,89.64,8.52161704]
[1771146181869,17.29760554,89.715,89.634,17.53525395]
[1771146182675,17.29760554,89.715,89.651,17.53525395]
[1771146183372,17.29760554,89.715,89.653,17.53525395]
[1771146183578,17.29760554,89.739,89.653,17.53525395]
[1771146183774,10.0347,89.729,89.671,10.0411]
[1771146183972,17.29760554,89.739,89.671,10.0411]
[1771146184171,17.29760554,89.729,89.642,17.53525395]
[1771146184572,17.29760554,89.704,89.63,8.52161704]
[1771146184773,17.29760554,89.704,89.625,17.53525395]
[1771146185074,17.29760554,89.688,89.633,10.0453]
[1771146185275,17.29760554,89.688,89.625,17.53525395]
[1771146185469,17.29760554,89.731,89.631,17.53525395]
[1771146185779,8.52161704,89.8,89.694,17.53525395]
[1771146185979,17.29760554,89.775,89.711,17.53525395]
[1771146186576,27.32710554,89.775,89.711,17.53525395]
[1771146187175,8.52161704,89.8,89.73,10.0345]
[1771146187176,10.0282,89.788,89.73,10.0345]
[1771146187383,10.0282,89.788,89.711,17.53525395]
[1771146187778,17.29760554,89.793,89.721,10.0355]
[1771146187974,17.29760554,89.775,89.721,10.0355]
[1771146189683,17.29760554,89.793,89.725,17.53525395]
[1771146189880,17.29760554,89.793,89.73,8.52161704]
[1771146190181,10.0282,89.787,89.731,17.53525395]
[1771146190377,17.29760554,89.793,89.731,17.53525395]
[1771146191082,17.29760554,89.793,89.732,17.53525395]
[1771146192285,17.29760554,89.793,89.742,10.0332]
[1771146193281,17.29760554,89.793,89.733,10.0342]
[1771146194185,17.29760554,89.793,89.741,10.0333]
[1771146194888,17.29760554,89.793,89.733,18.07041613]
[1771146195382,27.72036571,89.815,89.751,18.07041613]
[1771146196889,27.72036571,89.815,89.756,10.0316]
[1771146197287,17.69526571,89.811,89.751,18.07041613]
[1771146197883,17.69526571,89.811,89.734,98.74]
[1771146198284,17.69526571,89.811,89.735,18.07041613]
[1771146198484,17.69526571,89.811,89.746,10.0327]
[1771146198684,17.69526571,89.811,89.747,18.07041613]
[1771146198989,17.69526571,89.83,89.775,10.0294]
[1771146199185,17.69526571,89.85,89.781,18.07041613]
[1771146199391,17.69526571,89.868,89.801,18.07041613]
[1771146199692,17.69526571,89.866,89.781,18.07041613]
[1771146200092,17.69526571,89.859,89.781,18.07041613]
[1771146200388,33.55,89.86,89.781,18.07041613]
[1771146200389,17.69526571,89.842,89.782,10.0287]
[1771146200590,17.69526571,89.842,89.782,18.07041613]
[1771146200981,17.69526571,89.862,89.799,18.07041613]
[1771146201184,17.69526571,89.862,89.801,18.07041613]
[1771146201691,17.69526571,89.862,89.814,10.0252]
[1771146202579,17.69526571,89.862,89.804,105.5]
[1771146202580,10.0176,89.882,89.815,18.07041613]
[1771146202781,17.69526571,89.881,89.815,18.07041613]
[1771146203693,17.69526571,89.874,89.815,28.09541613]
[1771146203988,17.69526571,89.874,89.8,8.52161704]
[1771146203989,17.69526571,89.874,89.816,18.07041613]
[1771146204189,17.69526571,89.908,89.84,26.59203317]
[1771146204390,17.69526571,89.908,89.841,18.07041613]
[1771146204690,17.69526571,89.921,89.841,18.07041613]
[1771146205292,17.69526571,89.919,89.841,18.07041613]
[1771146206887,17.69526571,89.915,89.85,10.0211]
[1771146207795,17.69526571,89.912,89.841,18.07041613]
[1771146209591,17.69526571,89.912,89.84,8.52161704]
[1771146209592,10.0129,89.924,89.865,10.0194]
[1771146209999,27.70816571,89.924,89.865,10.0194]
[1771146210196,17.69526571,89.924,89.868,10.0191]
[1771146210400,17.69526571,89.924,89.866,18.07041613]
[1771146211105,17.69526571,89.924,89.876,10.0182]
[1771146211397,17.69526571,89.924,89.866,18.07041613]
[1771146212196,17.69526571,89.921,89.848,18.07041613]
[1771146212902,17.69526571,89.921,89.863,28.09011613]
[1771146213597,33.55,89.949,89.863,18.07041613]
[1771146213598,17.69526571,89.92,89.863,18.07041613]
[1771146214199,10.0138,89.916,89.863,18.07041613]
[1771146214702,17.69526571,89.916,89.841,18.07041613]
[1771146214901,17.69526571,89.9,89.841,18.07041613]
[1771146215304,17.69526571,89.9,89.852,10.0209]
[1771146215603,17.69526571,89.929,89.853,18.07041613]
[1771146216406,17.69526571,89.919,89.837,105.62]
[1771146217610,17.69526571,89.901,89.845,10.0217]
[1771146218002,17.69526571,89.901,89.846,18.07041613]
[1771146218198,17.69526571,89.901,89.853,10.0208]
[1771146218402,17.69526571,89.901,89.821,18.07041613]
[1771146218704,17.69526571,89.901,89.823,18.07041613]
[1771146218904,10.0164,89.893,89.823,18.07041613]
[1771146219707,10.0164,89.893,89.837,10.0226]
[1771146220110,10.0164,89.893,89.838,18.07041613]
[1771146220412,17.69526571,89.901,89.873,9.999e-05]
[1771146221710,27.71106571,89.898,89.873,9.999e-05]
[1771146222009,17.69526571,89.897,89.873,9.999e-05]
[1771146222406,17.19216015,89.914,89.873,9.999e-05]
[1771146222609,17.19216015,89.931,89.873,9.999e-05]
[1771146222807,17.19216015,89.931,89.873,16.87896833]
[1771146223714,10.0123,89.93,89.876,17.03298773]
[1771146224217,8.52161704,89.96,89.873,9.999e-05]
[1771146224218,16.70074135,89.95,89.891,17.03298773]
[1771146224402,16.70074135,89.968,89.911,17.03298773]
[1771146224603,16.70074135,89.986,89.911,17.03298773]
[1771146224803,16.70074135,89.972,89.916,10.0137]
[1771146225009,16.70074135,89.972,89.895,105.81298773]
[1771146225312,16.70074135,89.972,89.896,17.03298773]
[1771146225710,26.70914135,89.965,89.908,10.0147]
[1771146225912,16.70074135,89.964,89.908,10.0147]
[1771146226106,16.70074135,89.964,89.89,8.52161704]
[1771146226310,10.011,89.942,89.885,10.0172]
[1771146226809,26.71174135,89.942,89.885,10.0172]
[1771146227009,16.70074135,89.942,89.892,10.0164]
[1771146228206,33.55,89.937,89.873,9.999e-05]
[1771146228409,16.70074135,89.936,89.873,9.999e-05]
[1771146228617,10.0136,89.918,89.873,9.999e-05]
[1771146228916,16.70074135,89.917,89.873,9.999e-05]
[1771146229315,16.70074135,89.912,89.873,9.999e-05]
[1771146229615,42.07161704,89.93,89.792,17.03298773]
[1771146229616,8.52161704,89.89,89.792,17.03298773]
[1771146229813,16.70074135,89.869,89.792,17.03298773]
[1771146230112,16.70074135,89.859,89.773,17.03298773]
[1771146230308,33.55,89.86,89.773,17.03298773]
[1771146230309,16.70074135,89.841,89.773,17.03298773]
[1771146230710,16.70074135,89.839,89.76,105.96]
[1771146230908,16.70074135,89.821,89.76,105.96]
[1771146231811,8.52161704,89.85,89.761,17.03298773]
[1771146231812,42.07161704,89.85,89.761,17.03298773]
[1771146232014,16.70074135,89.849,89.761,17.03298773]
[1771146232314,10.0228,89.836,89.765,10.0306]
[1771146232512,16.70074135,89.849,89.766,17.03298773]
[1771146232917,16.70074135,89.849,89.771,17.03298773]
[1771146233511,10.0216,89.846,89.786,10.0282]
[1771146233914,16.70074135,89.842,89.717,17.03298773]
[1771146234118,16.70074135,89.842,89.707,20.0741]
[1771146234119,16.70074135,89.815,89.746,17.03298773]
[1771146234312,16.70074135,89.815,89.73,8.50031555]
[1771146234513,16.70074135,89.809,89.727,17.03298773]
[1771146234812,26.72844135,89.792,89.728,10.0347]
[1771146235413,26.72874135,89.789,89.727,17.03298773]
[1771146235614,16.70074135,89.788,89.727,17.03298773]
[1771146236716,16.70074135,89.788,89.728,10.0347]
[1771146237118,16.70074135,89.81,89.731,17.03298773]
[1771146237514,16.70074135,89.799,89.71,17.03298773]
[1771146237823,16.70074135,89.789,89.71,17.03298773]
[1771146238018,16.70074135,89.809,89.715,17.03298773]
[1771146238222,16.70074135,89.809,89.706,106.68]
[1771146238223,16.70074135,89.809,89.741,17.03298773]
[1771146239013,16.70074135,89.799,89.706,101.36]
[1771146239913,16.70074135,89.799,89.706,118.39298773]
[1771146240224,16.70074135,89.799,89.707,17.03298773]
[1771146240823,16.70074135,89.789,89.716,10.0361]
[1771146241216,16.70074135,89.81,89.721,17.03298773]
[1771146241416,16.70074135,89.81,89.706,101.36]
[1771146241417,10.0258,89.809,89.74,8.50031555]
[1771146241612,16.70074135,89.808,89.74,8.50031555]
[1771146241824,16.70074135,89.799,89.72,8.50031555]
[1771146242325,16.70074135,89.799,89.712,17.03298773]
[1771146242517,16.70074135,89.798,89.727,10.0348]
[1771146242717,16.70074135,89.798,89.712,17.03298773]
[1771146242718,16.70074135,89.798,89.72,8.50031555]
[1771146243113,10.0285,89.784,89.72,8.50031555]
[1771146243314,16.70074135,89.865,89.761,17.03298773]
[1771146243826,16.70074135,89.849,89.778,10.0291]
[1771146244219,16.70074135,89.849,89.761,17.03298773]
[1771146244820,8.50031555,89.87,89.761,17.03298773]
[1771146244821,10.0218,89.845,89.775,10.0295]
[1771146245024,16.70074135,89.844,89.781,17.03298773]
[1771146246819,16.70074135,89.869,89.791,27.06058773]
[1771146247528,10.0204,89.857,89.791,27.06058773]
[1771146247724,16.70074135,89.856,89.78,18.52921555]
[1771146247922,10.0214,89.848,89.78,10.0289]
[1771146248117,16.70074135,89.847,89.78,10.0289]
[1771146249528,16.70074135,89.847,89.771,17.03298773]
[1771146250124,16.70074135,89.847,89.788,10.0281]
[1771146250424,16.70074135,89.847,89.79,8.50031555]
[1771146250624,16.70074135,89.847,89.771,17.03298773]
[1771146251728,16.70074135,89.847,89.79,8.50031555]
[1771146252030,16.70074135,89.877,89.807,10.0259]
[1771146252225,33.55,89.888,89.811,17.03298773]
[1771146252424,16.70074135,89.889,89.813,17.03298773]
[1771146252726,16.70074135,89.888,89.817,10.0248]
[1771146253028,33.55,89.885,89.817,10.0248]
[1771146253225,16.36166982,89.879,89.81,8.50031555]
[1771146253624,16.36166982,89.873,89.796,16.36699335]
[1771146253831,16.36166982,89.869,89.796,105.20699335]
[1771146254126,16.36166982,89.859,89.796,16.36699335]
[1771146254331,16.36166982,89.859,89.779,16.36699335]
[1771146254625,16.36166982,89.856,89.788,10.0281]
[1771146254821,16.36166982,89.856,89.779,16.36699335]
[1771146255025,16.36166982,89.856,89.79,8.50031555]
[1771146255536,16.36166982,89.849,89.786,10.0282]
[1771146256033,16.36166982,89.847,89.786,10.0282]
[1771146258734,16.36166982,89.845,89.786,10.0282]
[1771146260527,16.36166982,89.842,89.786,10.0282]
[1771146260926,16.36166982,89.842,89.778,10.0292]
[1771146261133,16.36166982,89.828,89.77,8.50031555]
[1771146261528,16.36166982,89.828,89.775,10.0294]
[1771146265044,16.36166982,89.851,89.8,24.8673089]
[1771146265236,16.36166982,89.872,89.801,16.36699335]
[1771146267038,33.55,89.899,89.806,10.026]
[1771146267039,16.36166982,89.862,89.806,10.026]
[1771146268740,26.38176982,89.86,89.806,10.026]
[1771146269148,16.36166982,89.859,89.806,10.026]
[1771146269342,16.36166982,89.843,89.77,8.50031555]
[1771146270051,16.36166982,89.843,89.771,16.36699335]
[1771146270344,16.36166982,89.838,89.753,16.36699335]
[1771146271245,16.36166982,89.824,89.753,16.36699335]
[1771146272139,16.36166982,89.824,89.774,10.0296]
[1771146272140,10.0242,89.823,89.774,10.0296]
[1771146272545,26.38586982,89.823,89.753,16.36699335]
[1771146273044,16.36166982,89.822,89.753,16.36699335]
[1771146273843,16.36166982,89.822,89.766,10.0304]
[1771146274040,16.36166982,89.791,89.702,16.36699335]
[1771146274743,10.0295,89.775,89.702,16.36699335]
[1771146275044,8.50031555,89.8,89.702,16.36699335]
[1771146275045,16.36166982,89.774,89.702,16.36699335]
[1771146275245,16.36166982,89.774,89.704,16.36699335]
[1771146275438,16.36166982,89.774,89.71,8.50031555]
[1771146275640,16.36166982,89.774,89.711,16.36699335]
[1771146275949,16.36166982,89.774,89.714,16.36699335]
[1771146276345,10.0279,89.79,89.714,16.36699335]
[1771146277142,16.36166982,89.793,89.731,16.36699335]
[1771146278646,26.38706982,89.812,89.74,8.50031555]
[1771146278846,26.38706982,89.812,89.741,16.36699335]
[1771146279051,16.36166982,89.812,89.741,16.36699335]
[1771146279551,16.36166982,89.812,89.743,16.36699335]
[1771146280049,16.36166982,89.81,89.744,10.0329]
[1771146280442,16.36166982,89.81,89.733,88.86]
[1771146281254,16.36166982,89.808,89.743,10.033]
[1771146281953,16.36166982,89.806,89.743,10.033]
[1771146283253,10.0266,89.802,89.743,10.033]
[1771146283449,17.33743594,89.801,89.743,10.033]
[1771146285456,17.33743594,89.798,89.733,10.0342]
[1771146285863,17.33743594,89.793,89.724,17.25691481]
[1771146286058,17.33743594,89.787,89.724,17.25691481]
[1771146286268,17.33743594,89.781,89.711,17.25691481]
[1771146286563,17.33743594,89.779,89.712,17.25691481]
[1771146287558,17.33743594,89.767,89.712,17.25691481]
[1771146288161,17.33743594,89.767,89.714,17.25691481]
[1771146288867,17.33743594,89.767,89.717,10.0359]
[1771146289063,10.0291,89.779,89.718,17.25691481]
[1771146289358,17.33743594,89.778,89.718,17.25691481]
[1771146289557,17.33743594,89.765,89.7,17.25691481]
[1771146289763,17.33743594,89.763,89.69,8.50031555]
[1771146290065,17.33743594,89.763,89.685,17.25691481]
[1771146290565,17.33743594,89.789,89.698,17.25691481]
[1771146290759,17.33743594,89.789,89.71,8.50031555]
[1771146291360,17.33743594,89.789,89.711,17.25691481]
[1771146291664,17.33743594,89.783,89.711,17.25691481]
[1771146291863,10.0295,89.776,89.715,27.29311481]
[1771146292062,17.33743594,89.775,89.715,27.29311481]
[1771146293667,0.33333333,89.745,89.715,27.29311481]
[1771146295265,17.33743594,89.813,89.718,17.25691481]
[1771146295472,8.51318876,89.9,89.801,17.25691481]
[1771146295664,155.7254,89.943,89.801,17.25691481]
[1771146295665,8.51318876,89.92,89.82,8.51318876]
[1771146296562,33.55,89.919,89.82,8.51318876]
[1771146297366,10.0178,89.881,89.821,10.0244]
[1771146297566,17.33743594,89.88,89.821,10.0244]
[1771146298868,10.0182,89.877,89.821,10.0244]
[1771146299369,17.33743594,89.866,89.79,8.51318876]
[1771146300365,17.33743594,89.85,89.782,106.11691481]
[1771146301064,17.33743594,89.847,89.782,106.11691481]
[1771146301873,10.0221,89.842,89.783,10.0286]
[1771146302072,17.33743594,89.847,89.784,17.25691481]
[1771146302971,17.33743594,89.845,89.784,17.25691481]
[1771146303368,17.33743594,89.84,89.773,10.0297]
[1771146303871,17.33743594,89.836,89.773,10.0297]
[1771146304769,17.33743594,89.836,89.77,8.51318876]
[1771146304970,17.33743594,89.836,89.77,25.77010357]
[1771146305162,17.33743594,89.828,89.77,25.77010357]
[1771146305365,17.33743594,89.828,89.751,27.28911481]
[1771146306567,27.36433594,89.799,89.733,17.25691481]
[1771146306768,17.33743594,89.798,89.733,17.25691481]
[1771146307168,27.36443594,89.798,89.735,17.25691481]
[1771146307767,10.0278,89.791,89.735,17.25691481]
[1771146307974,17.33743594,89.797,89.725,10.0351]
[1771146308472,27.36493594,89.793,89.725,27.29201481]
[1771146308869,17.33743594,89.792,89.725,27.29201481]
[1771146309073,17.33743594,89.798,89.73,8.51318876]
[1771146309376,17.33743594,89.798,89.731,17.25691481]
[1771146309568,8.51318876,89.84,89.731,17.25691481]
[1771146309873,17.33743594,89.839,89.731,17.25691481]
[1771146310069,17.33743594,89.837,89.731,17.25691481]
[1771146310374,33.55,89.839,89.752,17.25691481]
[1771146310375,17.33743594,89.811,89.752,17.25691481]
[1771146310768,10.0257,89.81,89.752,17.25691481]
[1771146311275,17.33743594,89.855,89.752,17.25691481]
[1771146311867,17.33743594,89.824,89.752,17.25691481]
[1771146312472,17.33743594,89.824,89.752,27.28901481]
[1771146313075,10.0242,89.823,89.764,10.0307]
[1771146314167,10.025,89.816,89.756,16.60499037]
[1771146314366,17.33743594,89.824,89.756,16.60499037]
[1771146314772,10.025,89.816,89.757,26.63649037]
[1771146315077,17.33743594,89.824,89.757,16.60499037]
[1771146315277,27.36153594,89.824,89.757,16.60499037]
[1771146315473,17.33743594,89.824,89.757,16.60499037]
[1771146316078,16.27363856,89.823,89.765,10.0306]
[1771146316279,16.27363856,89.823,89.765,26.63559037]
[1771146317376,16.27363856,89.823,89.75,8.51318876]
[1771146317377,10.0245,89.821,89.771,10.0299]
[1771146317778,16.27363856,89.823,89.771,10.0299]
[1771146317979,10.0243,89.822,89.771,10.0299]
[1771146320386,8.51318876,89.85,89.766,16.60499037]
[1771146320387,10.0248,89.818,89.766,16.60499037]
[1771146320591,16.27363856,89.817,89.766,16.60499037]
[1771146321084,16.27363856,89.817,89.767,10.0303]
[1771146323579,16.27363856,89.817,89.766,16.60499037]
[1771146324286,26.29883856,89.814,89.758,10.0313]
[1771146324786,26.29883856,89.814,89.761,16.60499037]
[1771146325687,26.29883856,89.814,89.762,10.0309]
[1771146329291,10.0259,89.808,89.761,16.60499037]
[1771146329788,16.27363856,89.814,89.761,16.60499037]
[1771146330891,16.27363856,89.814,89.769,10.0301]
[1771146332593,16.27363856,89.814,89.746,16.60499037]
[1771146332794,10.0267,89.801,89.746,16.60499037]
[1771146333001,16.27363856,89.8,89.746,16.60499037]
[1771146333700,16.27363856,89.8,89.747,10.0326]
[1771146333901,16.27363856,89.8,89.748,16.60499037]
[1771146334400,16.27363856,89.79,89.725,10.0351]
[1771146334795,16.27363856,89.79,89.725,26.64009037]
[1771146334998,10.0295,89.776,89.729,10.0347]
[1771146336002,10.0286,89.783,89.729,10.0347]
[1771146336304,10.0286,89.783,89.735,10.0339]
[1771146336504,16.27363856,89.79,89.729,16.60499037]
[1771146336904,10.0286,89.784,89.733,10.0342]
[1771146337104,8.51318876,89.81,89.729,16.60499037]
[1771146337307,13.45315499,89.885,89.712,106.64]
[1771146337308,10.0256,89.811,89.762,10.031]
[1771146338699,8.51318876,89.82,89.737,16.60499037]
[1771146338902,33.55,89.819,89.721,16.60499037]
[1771146339101,16.27363856,89.799,89.721,16.60499037]
[1771146340201,16.27363856,89.799,89.742,16.60499037]
[1771146340402,16.27363856,89.799,89.701,156.1433]
[1771146340403,8.51318876,89.9,89.781,17.51069568]
[1771146340602,8.51318876,89.88,89.781,17.51069568]
[1771146341101,33.55,89.879,89.781,17.51069568]
[1771146341301,8.51318876,89.88,89.791,17.51069568]
[1771146341501,8.51318876,89.9,89.81,8.51318876]
[1771146341812,10.0186,89.873,89.812,27.53410016]
[1771146342103,8.51318876,89.9,89.793,17.50880016]
[1771146342304,33.55,89.895,89.793,17.50880016]
[1771146342508,0.75449293,89.894,89.793,17.50880016]
[1771146342808,0.75449293,89.859,89.8,10.0267]
[1771146344407,0.83308965,89.856,89.8,10.0267]
[1771146345206,1.13192325,89.844,89.793,17.50880016]
[1771146345405,1.13192325,89.844,89.776,16.86010538]
[1771146346804,1.06302337,89.841,89.776,16.86010538]
[1771146347004,1.06302337,89.841,89.741,16.90490752]
[1771146347712,10.0245,89.821,89.764,16.90279874]
[1771146347916,1.08746861,89.82,89.764,16.90279874]
[1771146348814,10.0264,89.803,89.746,16.97141077]
[1771146349112,1.08746861,89.82,89.746,16.97141077]
[1771146349309,10.0247,89.819,89.761,16.97141077]
[1771146350312,1.01352454,89.842,89.761,16.97141077]
[1771146351114,1.01352454,89.842,89.76,8.51318876]
[1771146351115,1.0049371,89.864,89.784,16.97368791]
[1771146351718,1.0049371,89.864,89.801,16.97173515]
[1771146351913,20.0324,89.895,89.76,8.51318876]
[1771146351914,1.02797852,89.881,89.821,16.97173515]
[1771146352117,1.02797852,89.9,89.821,16.97173515]
[1771146352319,1.02797852,89.9,89.841,16.97173515]
[1771146353119,0.41936363,89.922,89.86,8.51318876]
[1771146353415,0.43782448,89.943,89.861,17.28556601]
[1771146354819,0.43782448,89.943,89.881,17.4393546]
[1771146355018,0.43782448,89.943,89.89,8.47927296]
[1771146355214,10.0131,89.922,89.881,17.4393546]
[1771146355518,10.0131,89.922,89.87,8.47927296]
[1771146355822,33.55,89.967,89.862,17.4393546]
[1771146355823,10.0141,89.914,89.862,17.4393546]
[1771146356519,122.39,89.948,89.779,222.66]
[1771146356520,10.0153,89.903,89.843,17.62935489]